Cogmind - Beta 10.2 @@@ ROGUE MODE // 2021.08.09 @ 22:52:23 Player: matthew Result: Destroyed by S-10 Pest with Light Assault Rifle Performance ------------- Evolutions (0) 0 Regions Visited (1) 200 Robots Destroyed (3) 15 Value Destroyed (45) 45 Prototype IDs (0) 0 Alien Tech Used (0) 0 Bonus (0) 0 TOTAL SCORE: 260 Bonus ------- None Cogmind --------- Core Integrity 0/250 Matter 279/300 Energy 100/100 System Corruption 0% Temperature Cool (0) Movement Core (350) Ox6 Location -10/Materials Parts ------- > --- POWER (1) -------- (None) > --- PROPULSION (2) --- (None) > --- UTILITY (2) ------ Small Storage Unit Large Storage Unit > --- WEAPON (2) ------- (None) > --- INVENTORY (12) --- Aluminum Leg Heat Sink ECM Suite Peak State ------------ > --- POWER ------------ Light Ion Engine > --- PROPULSION ------- Aluminum Leg Aluminum Leg > --- UTILITY ---------- Small Storage Unit Large Storage Unit > --- WEAPON ----------- Medium Laser Assault Rifle > --- INVENTORY -------- Aluminum Leg Heat Sink Light Assault Rifle [Rating: 7] Favorites ----------- Power Light Ion Engine Engine Light Ion Engine Propulsion Aluminum Leg Leg Aluminum Leg Wheel Wheel Utility Small Storage Unit Storage Small Storage Unit Weapon Assault Rifle Energy Gun Medium Laser Ballistic Gun Assault Rifle Build | -11 -10 ------- Run | Scr Mat Slots Evolved . | . . Power . | . . Propulsion . | . . Utility . | . . Weapon . | . . Parts Attached 13 | 10 3 Power 1 | 1 . Engine 1 | 1 . Core . | . . Reactor . | . . Propulsion 4 | 4 . Treads . | . . Leg 2 | 2 . Wheel 2 | 2 . Hover . | . . Flight . | . . Utility 2 | . 2 Device . | . . Storage 2 | . 2 Processor . | . . Hackware . | . . Protection . | . . Artifact . | . . Weapon 6 | 5 1 Energy Gun 2 | 2 . Energy Cannon . | . . Ballistic Gun 4 | 3 1 Ballistic Cannon . | . . Launcher . | . . Special Weapon . | . . Impact Weapon . | . . Slashing Weapon . | . . Piercing Weapon . | . . Special Melee Weapon . | . . Unidentified Prototypes . | . . Parts Lost 7 | 1 6 Power 1 | . 1 Propulsion 3 | 1 2 Utility . | . . Weapon 3 | . 3 Highest Loss Streak 6 | 1 6 Average Slot Usage (%) 75 | . 75 Engine 10 | . 10 Leg 26 | . 26 Storage 14 | . 14 Energy Gun 10 | . 10 Ballistic Gun 12 | . 12 Naked Turns . | . . Heaviest Build 27 | 7 27 Greatest Support 20 | 20 20 Greatest Overweight (x) 6 | . 6 Average Overweight (x) . | . . Largest Inventory Capacity 12 | 4 12 Average Capacity 5 | 4 8 Most Carried 4 | 4 4 Average Carried 3 | 3 3 Final Capacity 12 | 4 12 Final Carried 4 | 4 3 Class Distribution -------------------- 100% | Mutant Dominant Class ---------------- Mutant | -10/Materials Resources | -11 -10 ----------- Run | Scr Mat Matter Collected 339 | 339 . Remotely . | . . Salvage Created 70 | 50 20 Parts 4 | 2 2 Haulers Intercepted . | . . Recyclers Shooed . | . . Parts Field Recycled . | . . Retrieved Matter . | . . Parts Self-Destructed . | . . Prevented . | . . Kills | -11 -10 ------- Run | Scr Mat Combat Hostiles Destroyed 2 | 1 1 Guns 2 | 1 1 Classes Destroyed 3 | 2 1 Worker 1 | 1 . Swarmer 1 | . 1 Grunt 1 | 1 . Best Kill Streak 1 | 1 1 Combat Bots Only 1 | 1 1 Max Kills in Single Turn 1 | 1 1 Gunslinging . | . . Exploded . | . . Melee . | . . Uniques/NPCs Destroyed . | . . Combat | -11 -10 -------- Run | Scr Mat Damage Taken 912 | 132 780 Core 255 | 21 234 Absorbed by Shields . | . . Core Remaining (%) 91 | 91 . Volleys Fired 21 | 11 10 Largest 2 | 2 2 Hottest 70 | 40 70 Shots Fired 39 | 22 17 Gun 39 | 22 17 Cannon . | . . Launcher . | . . Special . | . . Kinetic 32 | 22 10 Thermal 7 | . 7 Explosive . | . . Electromagnetic . | . . Robot Hit Streak 4 | 3 4 Robot Miss Streak 4 | 4 3 Penetration Max . | . . Secondary Targets . | . . Shots Hit Robots 20 | 11 9 Core Hits 5 | 3 2 Critical Hits . | . . Critical Kills . | . . Critical Parts Destroyed . | . . Melee Attacks . | . . Impact . | . . Slashing . | . . Piercing . | . . Sneak Attacks . | . . Combat Hostiles . | . . Follow-up Attacks . | . . Damage Inflicted 170 | 95 75 Guns 162 | 95 67 Cannons . | . . Explosions . | . . Melee . | . . Ramming 8 | . 8 Kinetic 138 | 95 43 Thermal 24 | . 24 Explosive . | . . Electromagnetic . | . . Impact . | . . Slashing . | . . Piercing . | . . Highest Corruption . | . . Average Corruption . | . . Corruption Purged . | . . Overload Shots . | . . Overflow Damage . | . . Projectiles . | . . Explosions . | . . Melee . | . . Knockbacks . | . . Impact . | . . Kinetic . | . . Secondary . | . . Self-Inflicted Damage 4 | . 4 Shots . | . . Rammed 1 | . 1 Targets Rammed 1 | . 1 Kicked . | . . Crushed . | . . Highest Temperature 36 | 6 36 Average Temperature 11 | 6 13 Received Heat Transfer 192 | 72 120 Siege Activations . | . . Robots Corrupted . | . . Combat Hostiles . | . . Parts Fried . | . . Impact Corruptions . | . . Robots Melted . | . . Combat Hostiles . | . . Parts Melted . | . . Heat Transferred 74 | . 74 Parts Sabotaged . | . . Parts Stolen . | . . Parts Stripped . | . . Power Chain Reactions . | . . Missiles Intercepted . | . . Alert | -11 -10 ------- Run | Scr Mat Peak Influence 32 | 20 32 Initial 13 | . 13 Average 16 | 10 24 Maximum Alert Level . | . . Low Security (%) 100 | 100 100 Level 1 . | . . Level 2 . | . . Level 3 . | . . Level 4 . | . . Level 5 . | . . High Security . | . . Max Security . | . . Squads Dispatched 2 | . 2 Investigation 1 | . 1 Extermination . | . . Reinforcement 1 | . 1 Assault . | . . Garrison . | . . Intercept . | . . Construction Impeded . | . . Haulers Reinforced . | . . Stealth | -11 -10 --------- Run | Scr Mat Distress Signals 1 | . 1 Communications Jammed . | . . Distress Signals . | . . Times Spotted 8 | 1 7 Peak Tracking Total 4 | 1 4 Tactical Retreats . | . . Traps | -11 -10 ------- Run | Scr Mat Traps Triggered . | . . Indirectly . | . . Trap Hack Attempts . | . . Triggered . | . . Disarmed . | . . Reprogrammed . | . . Reused . | . . Traps Extracted . | . . Installed . | . . Triggered . | . . Machines | -11 -10 ---------- Run | Scr Mat Machines Disabled . | . . Max in Single Turn . | . . Machines Sabotaged . | . . Garrisons Compromised . | . . Overloaded Fab Kills . | . . Fab Network Shutdowns . | . . Hacking | -11 -10 --------- Run | Scr Mat Machines Accessed 1 | . 1 Terminals 1 | . 1 Fabricators . | . . Repair Stations . | . . Recycling Units . | . . Scanalyzers . | . . Garrison Access . | . . Total Hacks 1 | . 1 Successful 1 | . 1 Failed . | . . Catastrophic . | . . Database Lockouts . | . . Manual . | . . Terminals 1 | . 1 Fabricators . | . . Repair Stations . | . . Recycling Units . | . . Scanalyzers . | . . Garrison Access . | . . Terminal Hacks 1 | . 1 Dispatch Records 1 | . 1 Fabricator Hacks . | . . Repair Station Hacks . | . . Recycling Unit Hacks . | . . Scanalyzer . | . . Garrison Access Hacks . | . . Unauthorized Hacks . | . . Terminals . | . . Fabricators . | . . Repair Stations . | . . Recycling Units . | . . Scanalyzers . | . . Garrison Access . | . . Data Cores Recovered . | . . Used . | . . Hacking Detections . | . . Full Trace Events . | . . Feedback Events . | . . Feedback Blocked . | . . Robot Schematics Acquired . | . . Robots Built . | . . Matter . | . . Time . | . . Total Robot Build Rating . | . . Part Schematics Acquired . | . . Parts Built . | . . Matter . | . . Time . | . . Total Part Build Rating . | . . Parts Repaired . | . . Time . | . . Parts Recycled . | . . Recycled Matter . | . . Retrieved Matter . | . . Retrieved Components . | . . Parts Scanalyzed . | . . Part Schematics Acquired . | . . Parts Damaged . | . . Bothacking | -11 -10 ------------ Run | Scr Mat Used RIF Installer . | . . Robots Hacked . | . . Non-combat . | . . Combat . | . . Robot Hacks Applied . | . . Relay Couplers Released . | . . Robots Rewired . | . . Allies Hacked . | . . Hacks Repelled . | . . Allies | -11 -10 -------- Run | Scr Mat Total Allies . | . . Largest Group . | . . Highest-Rated Group . | . . Highest-Rated Ally . | . . Total Orders . | . . Ally Attacks . | . . Total Damage . | . . Kills . | . . Allies Corrupted . | . . Allies Melted . | . . Intel | -11 -10 ------- Run | Scr Mat Robot Analysis Total . | . . Derelict Logs Recovered . | . . Drone Launches . | . . Drone Recoveries . | . . Exploration | -11 -10 ------------- Run | Scr Mat Turns Passed 564 | 346 218 Spaces Moved 433 | 317 116 Core 72 | 67 5 Treads . | . . Legs 241 | 130 111 Wheels 120 | 120 . Hover . | . . Flight . | . . Fastest Speed 50 | 50 120 Average Speed 103 | 90 141 Slowest Speed 350 | 120 350 Overloaded Moves . | . . Propulsion Burnouts . | . . Robots Hopped . | . . Cave-ins Triggered . | . . Exploration Rate (%) 17 | 11 23 Regions Visited 1 Branch Regions . Pre-discovered Areas . | . . Known Exits Taken . | . . Unknown Exits Taken 1 | 1 . Scrap Searched . | . . Spaces Dug . | . . Terrain Destroyed . | . . Melee . | . . Projectile . | . . AOE . | . . Terrain Rammed . | . . Walls Destroyed . | . . Machines Disabled . | . . Actions | -11 -10 --------- Run | Scr Mat Total 510 | 354 156 Wait 31 | 9 22 Move 432 | 316 116 Hop . | . . Pick Up 11 | 8 3 Fast Attach 2 | 2 . Attach 7 | 4 3 Detach . | . . Swap 4 | 4 . Drop 1 | . 1 Fire 21 | 11 10 Melee . | . . Ram . | . . Kick 1 | . 1 Crush . | . . Escape Stasis . | . . Rewire . | . . Trap . | . . Miscellaneous . | . . Route ------- -11/Scrapyard -10/Materials (discovered 1 exit: [*Mat]) History --------- Turn | Location | Event 2 | -11/Scrapyard | Met Revision 17 116 | -11/Scrapyard | Discovered new exit (range 8) 347 | -11/Scrapyard | Entered Materials 348 | -10/Materials | Build established: Mutant 534 | -10/Materials | Core integrity fell below 50% 549 | -10/Materials | Discovered new exit (range 4) 558 | -10/Materials | Core integrity fell below 20% 565 | -10/Materials | Destroyed by S-10 Pest with Light Assault Rifle Last Messages --------------- Lgt. Ion Engine destroyed. Slammed into S-10 Pest. Ramming works as a last resort when unarmed or blocked, but can have serious negative consequences. Med. Laser destroyed. Acquired ECM Suite. S-10 Pest destroyed. Assault Rifle destroyed. Fusion Modulator explodes. Lgt. Assault Rifle destroyed. Aluminum Leg destroyed. EXIT=FOUND Recycling Unit disabled. Med. Storage Unit tumbles out of recycling unit. Aluminum Leg tumbles out of recycling unit. R-06 Scavenger collects Lgt. Ion Engine. U-05 Engineer lays Concrete. Aluminum Leg destroyed. U-05 Engineer builds a Wall. [Achievement: First Step to Greatness] Map ----- +----------------------------------------------------+ | ?????????????????????????????????????????? | | ?????????????????????????????????????????? | | ?????????????????????????????????????????? | | ?????????????????????????????????????????? | | ?????????????????????????????????????????? | | ?????????????????????????????????????????? | | ?????????????????????????????????????????? | | ?????????????????????????????????????????? | | ?????????????????????????????????????????? | | ?????????????????????????????????????????? | | ?????????????????????????????????????????? | | ?????????????????????????????????????????? | | ???????????????????? #??????????????????? | | ??????????????????? #??????????????????? | | ????????????##????? #??????????????????? | | ???????????? ##### #####??????????????? | | # ?????????? ?????????????? | | # % ????????? ??????????????? | | # ???????? ???????????????? | | # ??????? #????????????????? | | # ??##### #????????????????? | | # ## #????????????????? | | # "" < ?????????????????? | | ??? ;; ????????????????????# | | ??????#;;;;;;;;######????????????????????# | | ??????#; s @! #????????????????????# | | ??????#; g ! #????????????????????# | | ??? ; s Y" #????????????????????# | | # ; " #??????????????####### | | #] [ # = #?????????????##! !!## | | # ?#;;;;;;;;;####?????????????#! !# | | # !!???# # ####????????????????#! = # | | # !????# #### ################## # | | #??????# #??# | | ???????# #??# | | ???????# #### "" | | ???????# ################## "" | | ??""" + #????????????????# "" | | ???"" # """ #????????????????# "" | | ???????# "Y" #????????????????# | | ???????## #????????????????# | | ????????# #????????????????+ | | ????????+ #????????????????# | | ????????# +????????????????###"T"## | | ????????# ##??????????????????#"""## | | ????????+ """ #???????????????????###### | | ????????# """ #????????????????????????# | | ????????# """ #????????????????????????# | | ????????# ??" #????????????????????????? | | ????????? ??" ?????????????????????????? | +----------------------------------------------------+ Best States ------------- Heat Dissipation 25 Energy Generation 10 Energy Capacity 125 Matter Stores 300 Matter Capacity 300 Sight Range 16 Terrain Scan Density 10 Evasion (%) 50 Item Schematics ----------------- None Robot Schematics ------------------ None Fabricated ------------ Nothing Alien Tech Used ----------------- None Achievements -------------- First Step to Greatness Uninvited Guest Challenges ------------ None Game ------ Seed MappingNeutronPod Manual? 0 Play Time 00:55:16 Cumulative 1.8 hours Start 2021.08.09 @ 19:17:55 End 2021.08.09 @ 22:52:23 Sessions 2 Manual Loads 0 Difficulty Rogue Special Mode None Game No. 1 Rogue 1 Adventurer 0 Explorer 0 Win Type - Total 0 Types 0/0/0/0/0/0/0/0/0 Lore% 0 Gallery% 0 Achievement% 0 Wizard Run 0 Options --------- ASCII 0 Keyboard 1 Movement Numpad Keybinds 0 Fullscreen 1 Font 24/Smallcaps Map View 76x50 Tactical HUD 0 Map Filters NONE Filters NONE Steam 0 RUN: 3e108d7f-091d-45ed-aa40-de9c3472dfe9